[Event "Titled Tuesday Blitz September 27 Early 2022"]
[White "Bharath Subramaniyam H"]
[Black "Burmakin, Vladimir"]
[WhiteFideId "46634827"]
[BlackFideId "4105109"]
[WhiteElo "2346"]
[BlackElo "2513"]
[Result "1-0"]
[Round "09"]
[TimeControl "180+1"]
[Date "2022.09.27"]
[WhiteClock "0:00:11"]
[BlackClock "0:00:01"]

1. d4 {[%clk 0:01:56]}  Nf6 {[%clk 0:02:56]} 2. Nf3 {[%clk 0:01:57]}  c6 {[%clk 0:02:55]} 3. c4 {[%clk 0:01:56]}  d5 {[%clk 0:02:55]} 4. cxd5 {[%clk 0:01:56]}  cxd5 {[%clk 0:02:55]} 5. Nc3 {[%clk 0:01:57]}  e6 {[%clk 0:02:55]} 6. Bf4 {[%clk 0:01:57]}  Bd6 {[%clk 0:02:53]} 7. Bxd6 {[%clk 0:01:57]}  Qxd6 {[%clk 0:02:52]} 8. e3 {[%clk 0:01:58]}  Nc6 {[%clk 0:02:51]} 9. Rc1 {[%clk 0:01:58]}  O-O {[%clk 0:02:50]} 10. Bd3 {[%clk 0:01:58]}  a6 {[%clk 0:02:49]} 11. O-O {[%clk 0:01:57]}  Bd7 {[%clk 0:02:46]} 12. Bb1 {[%clk 0:01:50]}  Rfc8 {[%clk 0:02:39]} 13. Na4 {[%clk 0:01:41]}  Ne7 {[%clk 0:02:32]} 14. Nc5 {[%clk 0:01:39]}  b6 {[%clk 0:02:31]} 15. Nd3 {[%clk 0:01:35]}  Bb5 {[%clk 0:02:27]} 16. Rxc8+ {[%clk 0:01:32]}  Rxc8 {[%clk 0:02:26]} 17. Re1 {[%clk 0:01:32]}  a5 {[%clk 0:02:21]} 18. Nfe5 {[%clk 0:01:31]}  Ng6 {[%clk 0:02:16]} 19. a3 {[%clk 0:01:28]}  Qc7 {[%clk 0:02:05]} 20. Nxg6 {[%clk 0:01:26]}  hxg6 {[%clk 0:02:04]} 21. Ne5 {[%clk 0:01:27]}  Nd7 {[%clk 0:02:01]} 22. Nf3 {[%clk 0:01:23]}  Qc4 {[%clk 0:01:55]} 23. h3 {[%clk 0:01:07]}  Ba6 {[%clk 0:01:32]} 24. Qd2 {[%clk 0:01:01]}  Qb3 {[%clk 0:01:24]} 25. Rc1 {[%clk 0:01:00]}  Rxc1+ {[%clk 0:01:12]} 26. Qxc1 {[%clk 0:01:01]}  Qc4 {[%clk 0:01:12]} 27. Qd1 {[%clk 0:00:59]}  Qc7 {[%clk 0:01:06]} 28. g4 {[%clk 0:00:47]}  Qc4 {[%clk 0:01:02]} 29. Kg2 {[%clk 0:00:46]}  Kf8 {[%clk 0:00:55]} 30. g5 {[%clk 0:00:43]}  Ke7 {[%clk 0:00:54]} 31. h4 {[%clk 0:00:43]}  Qe2 {[%clk 0:00:49]} 32. Qc1 {[%clk 0:00:41]}  Qc4 {[%clk 0:00:48]} 33. Qd1 {[%clk 0:00:34]}  Qe2 {[%clk 0:00:48]} 34. Qc1 {[%clk 0:00:34]}  Qc4 {[%clk 0:00:46]} 35. Bc2 {[%clk 0:00:29]}  Bb5 {[%clk 0:00:34]} 36. Nd2 {[%clk 0:00:28]}  Qe2 {[%clk 0:00:32]} 37. Bd1 {[%clk 0:00:28]}  Qd3 {[%clk 0:00:31]} 38. Bg4 {[%clk 0:00:22]}  Bc4 {[%clk 0:00:25]} 39. Nf3 {[%clk 0:00:19]}  b5 {[%clk 0:00:22]} 40. Qe1 {[%clk 0:00:18]}  a4 {[%clk 0:00:19]} 41. Qa5 {[%clk 0:00:18]}  Qf1+ {[%clk 0:00:18]} 42. Kg3 {[%clk 0:00:17]}  Be2 {[%clk 0:00:17]} 43. Qc7 {[%clk 0:00:16]}  Bxf3 {[%clk 0:00:15]} 44. Bxf3 {[%clk 0:00:16]}  Qg1+ {[%clk 0:00:15]} 45. Bg2 {[%clk 0:00:16]}  Qb1 {[%clk 0:00:15]} 46. Qc3 {[%clk 0:00:16]}  Qd1 {[%clk 0:00:14]} 47. Qb4+ {[%clk 0:00:16]}  Ke8 {[%clk 0:00:13]} 48. Qxb5 {[%clk 0:00:17]}  f5 {[%clk 0:00:12]} 49. gxf6 {[%clk 0:00:16]}  gxf6 {[%clk 0:00:12]} 50. Qc6 {[%clk 0:00:16]}  Ke7 {[%clk 0:00:12]} 51. Qc3 {[%clk 0:00:15]}  f5 {[%clk 0:00:11]} 52. Kh2 {[%clk 0:00:14]}  Qg4 {[%clk 0:00:11]} 53. Qb4+ {[%clk 0:00:15]}  Kf7 {[%clk 0:00:09]} 54. Qxa4 {[%clk 0:00:15]}  Qxh4+ {[%clk 0:00:09]} 55. Kg1 {[%clk 0:00:16]}  Nf6 {[%clk 0:00:09]} 56. Qa7+ {[%clk 0:00:16]}  Kg8 {[%clk 0:00:09]} 57. Qb8+ {[%clk 0:00:17]}  Kh7 {[%clk 0:00:09]} 58. Qc7+ {[%clk 0:00:16]}  Kg8 {[%clk 0:00:08]} 59. a4 {[%clk 0:00:16]}  Ng4 {[%clk 0:00:08]} 60. Qf4 {[%clk 0:00:15]}  Qd8 {[%clk 0:00:04]} 61. b4 {[%clk 0:00:13]}  Qc8 {[%clk 0:00:03]} 62. b5 {[%clk 0:00:10]}  Qc2 {[%clk 0:00:01]} 63. Bf1 {[%clk 0:00:11]}  Qxa4 {[%clk 0:00:01]} 64. b6 {[%clk 0:00:11]}  Qb3 {[%clk 0:00:01]} 65. Qb8+ {[%clk 0:00:10]}  Kg7 {[%clk 0:00:01]} 66. Qc7+ {[%clk 0:00:11]}  Kh6 {[%clk 0:00:01]} 67. b7 {[%clk 0:00:11]} 1-0


[Site "https://www.chess.com"]

[Event "Titled Tuesday Blitz September 27 Early 2022"]
[White "Bilan, Danila"]
[Black "Ravi, Thandalam Shanmugam"]
[WhiteFideId "24161918"]
[BlackFideId "5000238"]
[WhiteElo "2164"]
[BlackElo "2063"]
[Result "1-0"]
[Round "09"]
[TimeControl "180+1"]
[Date "2022.09.27"]
[WhiteClock "0:00:18"]
[BlackClock "0:00:48"]

1. d4 {[%clk 0:03:00]}  Nf6 {[%clk 0:02:57]} 2. Nf3 {[%clk 0:02:57]}  d5 {[%clk 0:02:56]} 3. c4 {[%clk 0:02:57]}  e6 {[%clk 0:02:56]} 4. Nc3 {[%clk 0:02:56]}  c6 {[%clk 0:02:56]} 5. Bg5 {[%clk 0:02:50]}  dxc4 {[%clk 0:02:56]} 6. e4 {[%clk 0:02:50]}  b5 {[%clk 0:02:56]} 7. e5 {[%clk 0:02:50]}  h6 {[%clk 0:02:56]} 8. Bh4 {[%clk 0:02:50]}  g5 {[%clk 0:02:57]} 9. Nxg5 {[%clk 0:02:51]}  hxg5 {[%clk 0:02:58]} 10. Bxg5 {[%clk 0:02:52]}  Be7 {[%clk 0:02:58]} 11. exf6 {[%clk 0:02:53]}  Bxf6 {[%clk 0:02:59]} 12. Bxf6 {[%clk 0:02:44]}  Qxf6 {[%clk 0:03:00]} 13. g3 {[%clk 0:02:44]}  Bb7 {[%clk 0:02:57]} 14. Bg2 {[%clk 0:02:43]}  Na6 {[%clk 0:02:56]} 15. Nxb5 {[%clk 0:02:25]}  O-O-O {[%clk 0:02:56]} 16. Nc3 {[%clk 0:01:57]}  Rxd4 {[%clk 0:02:55]} 17. Qe2 {[%clk 0:01:47]}  c5 {[%clk 0:02:30]} 18. Bxb7+ {[%clk 0:01:22]}  Kxb7 {[%clk 0:02:31]} 19. O-O {[%clk 0:01:22]}  Nb4 {[%clk 0:02:21]} 20. b3 {[%clk 0:00:59]}  Rd3 {[%clk 0:01:35]} 21. Ne4 {[%clk 0:00:45]}  Qd4 {[%clk 0:01:34]} 22. bxc4 {[%clk 0:00:37]}  f5 {[%clk 0:01:27]} 23. Ng5 {[%clk 0:00:30]}  e5 {[%clk 0:01:24]} 24. a3 {[%clk 0:00:28]}  Nc6 {[%clk 0:01:16]} 25. Rab1+ {[%clk 0:00:28]}  Kc7 {[%clk 0:01:17]} 26. Ne6+ {[%clk 0:00:28]}  Kd6 {[%clk 0:01:11]} 27. Nxd4 {[%clk 0:00:25]}  Rxd4 {[%clk 0:01:12]} 28. Rfd1 {[%clk 0:00:21]}  e4 {[%clk 0:01:12]} 29. Qe3 {[%clk 0:00:19]}  Ke6 {[%clk 0:01:05]} 30. h4 {[%clk 0:00:18]}  Rhd8 {[%clk 0:01:03]} 31. Qh6+ {[%clk 0:00:16]}  Ke5 {[%clk 0:00:58]} 32. Qxc6 {[%clk 0:00:12]}  Rxd1+ {[%clk 0:00:58]} 33. Rxd1 {[%clk 0:00:13]}  Rxd1+ {[%clk 0:00:58]} 34. Kg2 {[%clk 0:00:14]}  Rd2 {[%clk 0:00:58]} 35. Qxc5+ {[%clk 0:00:14]}  Ke6 {[%clk 0:00:57]} 36. Qxa7 {[%clk 0:00:13]}  Kf6 {[%clk 0:00:57]} 37. Qc5 {[%clk 0:00:12]}  Kg6 {[%clk 0:00:56]} 38. a4 {[%clk 0:00:12]}  Ra2 {[%clk 0:00:52]} 39. a5 {[%clk 0:00:12]}  Kf6 {[%clk 0:00:50]} 40. Qb6+ {[%clk 0:00:12]}  Ke5 {[%clk 0:00:50]} 41. a6 {[%clk 0:00:13]}  e3 {[%clk 0:00:49]} 42. Qxe3+ {[%clk 0:00:13]}  Kf6 {[%clk 0:00:49]} 43. a7 {[%clk 0:00:12]}  f4 {[%clk 0:00:48]} 44. Qxf4+ {[%clk 0:00:12]}  Kg6 {[%clk 0:00:47]} 45. a8=Q {[%clk 0:00:12]}  Rxa8 {[%clk 0:00:46]} 46. Qe4+ {[%clk 0:00:13]}  Kh5 {[%clk 0:00:46]} 47. Qxa8 {[%clk 0:00:14]}  Kg4 {[%clk 0:00:46]} 48. Qe4+ {[%clk 0:00:14]}  Kh5 {[%clk 0:00:47]} 49. Qf5+ {[%clk 0:00:14]}  Kh6 {[%clk 0:00:46]} 50. Qg5+ {[%clk 0:00:15]}  Kh7 {[%clk 0:00:46]} 51. f4 {[%clk 0:00:15]}  Kh8 {[%clk 0:00:47]} 52. f5 {[%clk 0:00:16]}  Kh7 {[%clk 0:00:47]} 53. f6 {[%clk 0:00:17]}  Kh8 {[%clk 0:00:48]} 54. Qg7# {[%clk 0:00:18]} 1-0


[Site "https://www.chess.com"]

[Event "Titled Tuesday Blitz September 27 Early 2022"]
[White "Bowden, Karl"]
[Black "Diaz Perez, Michel Alejandro"]
[WhiteFideId "400548"]
[BlackFideId "3517179"]
[WhiteElo "2484"]
[BlackElo "2313"]
[Result "1/2-1/2"]
[Round "09"]
[TimeControl "180+1"]
[Date "2022.09.27"]
[WhiteClock "0:00:08"]
[BlackClock "0:00:11"]

1. e4 {[%clk 0:02:59]}  d5 {[%clk 0:02:51]} 2. Nc3 {[%clk 0:02:56]}  dxe4 {[%clk 0:02:50]} 3. Nxe4 {[%clk 0:02:56]}  c6 {[%clk 0:02:50]} 4. Nf3 {[%clk 0:02:53]}  Nd7 {[%clk 0:02:49]} 5. Qe2 {[%clk 0:02:32]}  Qc7 {[%clk 0:02:47]} 6. g3 {[%clk 0:02:30]}  Ngf6 {[%clk 0:02:46]} 7. d3 {[%clk 0:02:30]}  Nxe4 {[%clk 0:02:45]} 8. dxe4 {[%clk 0:02:30]}  e5 {[%clk 0:02:45]} 9. Bg2 {[%clk 0:02:23]}  Be7 {[%clk 0:02:45]} 10. O-O {[%clk 0:02:23]}  O-O {[%clk 0:02:46]} 11. Rd1 {[%clk 0:02:18]}  a5 {[%clk 0:02:43]} 12. a4 {[%clk 0:01:53]}  Nc5 {[%clk 0:02:41]} 13. b3 {[%clk 0:01:26]}  f6 {[%clk 0:02:38]} 14. Ba3 {[%clk 0:01:20]}  b6 {[%clk 0:02:36]} 15. Qe3 {[%clk 0:01:18]}  Bg4 {[%clk 0:02:26]} 16. h3 {[%clk 0:01:16]}  Bh5 {[%clk 0:02:24]} 17. Bf1 {[%clk 0:01:06]}  Bg6 {[%clk 0:02:19]} 18. Bc4+ {[%clk 0:01:01]}  Kh8 {[%clk 0:02:17]} 19. Nh4 {[%clk 0:00:58]}  Rfd8 {[%clk 0:02:03]} 20. Nxg6+ {[%clk 0:00:50]}  hxg6 {[%clk 0:02:02]} 21. Qe2 {[%clk 0:00:35]}  Qc8 {[%clk 0:01:16]} 22. Rxd8+ {[%clk 0:00:29]}  Bxd8 {[%clk 0:01:14]} 23. Bxc5 {[%clk 0:00:28]}  bxc5 {[%clk 0:01:13]} 24. Kg2 {[%clk 0:00:26]}  f5 {[%clk 0:01:06]} 25. exf5 {[%clk 0:00:20]}  Qxf5 {[%clk 0:01:06]} 26. Bd3 {[%clk 0:00:19]}  Qe6 {[%clk 0:00:57]} 27. Qe4 {[%clk 0:00:19]}  Bg5 {[%clk 0:00:48]} 28. Re1 {[%clk 0:00:18]}  Re8 {[%clk 0:00:44]} 29. h4 {[%clk 0:00:16]}  Bh6 {[%clk 0:00:43]} 30. h5 {[%clk 0:00:16]}  Qf6 {[%clk 0:00:35]} 31. Qxg6 {[%clk 0:00:15]}  Qxg6 {[%clk 0:00:34]} 32. hxg6 {[%clk 0:00:16]}  Kg8 {[%clk 0:00:34]} 33. Re4 {[%clk 0:00:15]}  Bg5 {[%clk 0:00:30]} 34. f4 {[%clk 0:00:12]}  Bf6 {[%clk 0:00:30]} 35. g4 {[%clk 0:00:12]}  Kf8 {[%clk 0:00:23]} 36. g5 {[%clk 0:00:11]}  Bd8 {[%clk 0:00:24]} 37. Kf3 {[%clk 0:00:08]}  exf4 {[%clk 0:00:22]} 38. Rxe8+ {[%clk 0:00:07]}  Kxe8 {[%clk 0:00:23]} 39. Kxf4 {[%clk 0:00:08]}  Ke7 {[%clk 0:00:22]} 40. Kf5 {[%clk 0:00:08]}  Bc7 {[%clk 0:00:21]} 41. Be4 {[%clk 0:00:08]}  Kd7 {[%clk 0:00:20]} 42. Bd3 {[%clk 0:00:09]}  Bg3 {[%clk 0:00:20]} 43. Be4 {[%clk 0:00:09]}  Kd6 {[%clk 0:00:19]} 44. Bd3 {[%clk 0:00:09]}  Be1 {[%clk 0:00:19]} 45. Be4 {[%clk 0:00:09]}  c4 {[%clk 0:00:17]} 46. bxc4 {[%clk 0:00:09]}  Kc5 {[%clk 0:00:17]} 47. Bf3 {[%clk 0:00:09]}  Bd2 {[%clk 0:00:16]} 48. Bg2 {[%clk 0:00:08]}  Bc1 {[%clk 0:00:13]} 49. Ke6 {[%clk 0:00:07]}  Bxg5 {[%clk 0:00:12]} 50. Kd7 {[%clk 0:00:07]}  Kxc4 {[%clk 0:00:12]} 51. Bxc6 {[%clk 0:00:07]}  Kc3 {[%clk 0:00:12]} 52. Be4 {[%clk 0:00:07]}  Kb4 {[%clk 0:00:11]} 53. Bc6 {[%clk 0:00:08]}  Kc3 {[%clk 0:00:11]} 54. Be4 {[%clk 0:00:08]}  Kb4 {[%clk 0:00:11]} 55. Bc6 {[%clk 0:00:08]}  Kc4 {[%clk 0:00:12]} 56. Ke6 {[%clk 0:00:07]}  Kc3 {[%clk 0:00:11]} 57. Be4 {[%clk 0:00:07]}  Kb4 {[%clk 0:00:10]} 58. Bc6 {[%clk 0:00:07]}  Kc3 {[%clk 0:00:11]} 59. Be4 {[%clk 0:00:07]}  Kb4 {[%clk 0:00:11]} 60. Bc6 {[%clk 0:00:08]}  Kc3 {[%clk 0:00:11]} 1/2-1/2


[Site "https://www.chess.com"]

[Event "Titled Tuesday Blitz September 27 Early 2022"]
[White "Buscar, Michael"]
[Black "Winterberg, Lukas"]
[WhiteFideId "2603616"]
[BlackFideId "24622702"]
[WhiteElo "2010"]
[BlackElo "2349"]
[Result "1-0"]
[Round "09"]
[TimeControl "180+1"]
[Date "2022.09.27"]
[WhiteClock "0:00:32"]
[BlackClock "0:00:21"]

1. Nf3 {[%clk 0:03:00]}  g6 {[%clk 0:02:56]} 2. g3 {[%clk 0:03:00]}  Bg7 {[%clk 0:02:57]} 3. Bg2 {[%clk 0:03:00]}  d5 {[%clk 0:02:56]} 4. d3 {[%clk 0:02:59]}  e5 {[%clk 0:02:56]} 5. Bg5 {[%clk 0:02:57]}  f6 {[%clk 0:02:55]} 6. Bd2 {[%clk 0:02:57]}  Ne7 {[%clk 0:02:55]} 7. Qc1 {[%clk 0:02:56]}  O-O {[%clk 0:02:48]} 8. Bh6 {[%clk 0:02:54]}  c5 {[%clk 0:02:33]} 9. Bxg7 {[%clk 0:02:52]}  Kxg7 {[%clk 0:02:33]} 10. h4 {[%clk 0:02:53]}  Nbc6 {[%clk 0:02:32]} 11. h5 {[%clk 0:02:53]}  g5 {[%clk 0:02:32]} 12. Nxg5 {[%clk 0:02:51]}  fxg5 {[%clk 0:02:32]} 13. Qxg5+ {[%clk 0:02:52]}  Kh8 {[%clk 0:02:32]} 14. Nc3 {[%clk 0:02:49]}  Rf5 {[%clk 0:02:18]} 15. Qh6 {[%clk 0:02:36]}  Ng8 {[%clk 0:01:57]} 16. Qd2 {[%clk 0:02:27]}  Be6 {[%clk 0:01:57]} 17. g4 {[%clk 0:02:12]}  Rf7 {[%clk 0:01:56]} 18. g5 {[%clk 0:02:06]}  Rd7 {[%clk 0:01:43]} 19. O-O-O {[%clk 0:02:00]}  b5 {[%clk 0:01:42]} 20. e4 {[%clk 0:01:55]}  d4 {[%clk 0:01:28]} 21. Nd5 {[%clk 0:01:55]}  Nce7 {[%clk 0:01:26]} 22. Rdg1 {[%clk 0:01:20]}  Nxd5 {[%clk 0:01:18]} 23. exd5 {[%clk 0:01:15]}  Bxd5 {[%clk 0:01:18]} 24. Bxd5 {[%clk 0:01:09]}  Rxd5 {[%clk 0:01:19]} 25. g6 {[%clk 0:01:10]}  h6 {[%clk 0:01:18]} 26. g7+ {[%clk 0:01:01]}  Kh7 {[%clk 0:01:18]} 27. Qe2 {[%clk 0:01:01]}  Nf6 {[%clk 0:01:03]} 28. Qf3 {[%clk 0:01:01]}  Kg8 {[%clk 0:00:33]} 29. Rg6 {[%clk 0:00:56]}  Rd6 {[%clk 0:00:25]} 30. Rxh6 {[%clk 0:00:45]}  Nh7 {[%clk 0:00:20]} 31. Rxd6 {[%clk 0:00:35]}  Qxd6 {[%clk 0:00:21]} 32. Qxa8+ {[%clk 0:00:35]}  Kxg7 {[%clk 0:00:22]} 33. Rg1+ {[%clk 0:00:32]}  Kh6 {[%clk 0:00:21]} 34. Rg6+ {[%clk 0:00:32]} 1-0


[Site "https://www.chess.com"]

[Event "Titled Tuesday Blitz September 27 Early 2022"]
[White "Carrasco Miranda, Andres"]
[Black "Dushyant Sharma"]
[WhiteFideId "3405990"]
[BlackFideId "25065130"]
[WhiteElo "2177"]
[BlackElo "2144"]
[Result "1-0"]
[Round "09"]
[TimeControl "180+1"]
[Date "2022.09.27"]
[WhiteClock "0:00:21"]
[BlackClock "0:00:08"]

1. d4 {[%clk 0:02:59]}  d5 {[%clk 0:03:00]} 2. c4 {[%clk 0:02:58]}  e6 {[%clk 0:02:50]} 3. Nf3 {[%clk 0:02:57]}  Nf6 {[%clk 0:02:50]} 4. g3 {[%clk 0:02:57]}  Be7 {[%clk 0:02:50]} 5. Bg2 {[%clk 0:02:56]}  O-O {[%clk 0:02:49]} 6. O-O {[%clk 0:02:56]}  dxc4 {[%clk 0:02:48]} 7. Qc2 {[%clk 0:02:56]}  c5 {[%clk 0:02:48]} 8. dxc5 {[%clk 0:02:52]}  Nc6 {[%clk 0:02:49]} 9. Nbd2 {[%clk 0:02:51]}  e5 {[%clk 0:02:48]} 10. Nxc4 {[%clk 0:02:49]}  e4 {[%clk 0:02:47]} 11. Nfe5 {[%clk 0:02:49]}  Nd4 {[%clk 0:02:47]} 12. Qd1 {[%clk 0:02:33]}  Bxc5 {[%clk 0:02:41]} 13. Be3 {[%clk 0:02:31]}  b5 {[%clk 0:02:28]} 14. b4 {[%clk 0:02:05]}  bxc4 {[%clk 0:01:54]} 15. bxc5 {[%clk 0:02:03]}  Ne6 {[%clk 0:01:47]} 16. Qxd8 {[%clk 0:01:50]}  Rxd8 {[%clk 0:01:48]} 17. Nxc4 {[%clk 0:01:50]}  Ba6 {[%clk 0:01:44]} 18. Rfc1 {[%clk 0:01:48]}  Rab8 {[%clk 0:01:35]} 19. Ne5 {[%clk 0:01:38]}  Rdc8 {[%clk 0:01:27]} 20. Rab1 {[%clk 0:01:23]}  Rxb1 {[%clk 0:01:22]} 21. Rxb1 {[%clk 0:01:24]}  Nxc5 {[%clk 0:00:52]} 22. Rc1 {[%clk 0:01:03]}  Ne6 {[%clk 0:00:45]} 23. Rxc8+ {[%clk 0:01:01]}  Bxc8 {[%clk 0:00:46]} 24. Bxa7 {[%clk 0:01:02]}  Ba6 {[%clk 0:00:40]} 25. e3 {[%clk 0:01:01]}  Kf8 {[%clk 0:00:36]} 26. f3 {[%clk 0:00:45]}  Ke7 {[%clk 0:00:32]} 27. fxe4 {[%clk 0:00:43]}  Kd6 {[%clk 0:00:27]} 28. Nxf7+ {[%clk 0:00:37]}  Ke7 {[%clk 0:00:27]} 29. Ne5 {[%clk 0:00:37]}  Kd6 {[%clk 0:00:27]} 30. Bd4 {[%clk 0:00:35]}  Ne8 {[%clk 0:00:16]} 31. Bf1 {[%clk 0:00:29]}  Bb7 {[%clk 0:00:15]} 32. Nc4+ {[%clk 0:00:28]}  Ke7 {[%clk 0:00:14]} 33. e5 {[%clk 0:00:27]}  Bd5 {[%clk 0:00:14]} 34. a4 {[%clk 0:00:26]}  N8c7 {[%clk 0:00:13]} 35. Nb6 {[%clk 0:00:24]}  Bb7 {[%clk 0:00:11]} 36. a5 {[%clk 0:00:24]}  Ba6 {[%clk 0:00:11]} 37. Nd5+ {[%clk 0:00:20]}  Kd7 {[%clk 0:00:05]} 38. Nxc7 {[%clk 0:00:20]}  Nxc7 {[%clk 0:00:06]} 39. e6+ {[%clk 0:00:16]}  Kxe6 {[%clk 0:00:05]} 40. Bxa6 {[%clk 0:00:16]}  Nxa6 {[%clk 0:00:06]} 41. Bxg7 {[%clk 0:00:16]}  Kf5 {[%clk 0:00:05]} 42. Kf2 {[%clk 0:00:16]}  Ke4 {[%clk 0:00:06]} 43. Ke2 {[%clk 0:00:15]}  h5 {[%clk 0:00:06]} 44. Bd4 {[%clk 0:00:15]}  Nb4 {[%clk 0:00:06]} 45. h3 {[%clk 0:00:15]}  Na6 {[%clk 0:00:05]} 46. g4 {[%clk 0:00:15]}  hxg4 {[%clk 0:00:06]} 47. hxg4 {[%clk 0:00:15]}  Nb4 {[%clk 0:00:06]} 48. Bb6 {[%clk 0:00:13]}  Na6 {[%clk 0:00:06]} 49. g5 {[%clk 0:00:14]}  Kf5 {[%clk 0:00:06]} 50. Kd3 {[%clk 0:00:14]}  Kxg5 {[%clk 0:00:06]} 51. Kc4 {[%clk 0:00:15]}  Kf5 {[%clk 0:00:07]} 52. Kb5 {[%clk 0:00:15]}  Nb8 {[%clk 0:00:07]} 53. a6 {[%clk 0:00:16]}  Nxa6 {[%clk 0:00:05]} 54. Kxa6 {[%clk 0:00:16]}  Ke4 {[%clk 0:00:06]} 55. Kb5 {[%clk 0:00:17]}  Kf5 {[%clk 0:00:06]} 56. Kc4 {[%clk 0:00:18]}  Ke5 {[%clk 0:00:07]} 57. Kc3 {[%clk 0:00:19]}  Ke6 {[%clk 0:00:07]} 58. Kd3 {[%clk 0:00:19]}  Kd5 {[%clk 0:00:08]} 59. e4+ {[%clk 0:00:20]}  Kc6 {[%clk 0:00:09]} 60. Kd4 {[%clk 0:00:19]}  Kxb6 {[%clk 0:00:09]} 61. Kd5 {[%clk 0:00:20]}  Kc7 {[%clk 0:00:10]} 62. Ke6 {[%clk 0:00:20]}  Kc6 {[%clk 0:00:08]} 63. e5 {[%clk 0:00:20]}  Kc7 {[%clk 0:00:08]} 64. Kf7 {[%clk 0:00:20]}  Kd8 {[%clk 0:00:08]} 65. e6 {[%clk 0:00:21]} 1-0


[Site "https://www.chess.com"]

[Event "Titled Tuesday Blitz September 27 Early 2022"]
[White "Caruana, Fabiano"]
[Black "Svane, Rasmus"]
[WhiteFideId "2020009"]
[BlackFideId "4657101"]
[WhiteElo "2847"]
[BlackElo "2674"]
[Result "1/2-1/2"]
[Round "09"]
[TimeControl "180+1"]
[Date "2022.09.27"]
[WhiteClock "0:00:22"]
[BlackClock "0:00:16"]

1. e3 {[%clk 0:03:00]}  d5 {[%clk 0:02:58]} 2. c4 {[%clk 0:02:59]}  e6 {[%clk 0:02:58]} 3. Nf3 {[%clk 0:03:00]}  Nf6 {[%clk 0:02:58]} 4. b3 {[%clk 0:03:00]}  c5 {[%clk 0:02:57]} 5. Bb2 {[%clk 0:03:00]}  Nc6 {[%clk 0:02:57]} 6. cxd5 {[%clk 0:03:01]}  exd5 {[%clk 0:02:58]} 7. Bb5 {[%clk 0:03:00]}  Bd6 {[%clk 0:02:58]} 8. h3 {[%clk 0:03:01]}  O-O {[%clk 0:02:56]} 9. O-O {[%clk 0:03:00]}  d4 {[%clk 0:02:44]} 10. exd4 {[%clk 0:02:55]}  Nxd4 {[%clk 0:02:20]} 11. Nxd4 {[%clk 0:02:54]}  cxd4 {[%clk 0:02:21]} 12. Bxd4 {[%clk 0:02:50]}  Bh2+ {[%clk 0:02:20]} 13. Kxh2 {[%clk 0:02:50]}  Qxd4 {[%clk 0:02:21]} 14. Nc3 {[%clk 0:02:50]}  Be6 {[%clk 0:02:17]} 15. Qf3 {[%clk 0:02:43]}  a6 {[%clk 0:02:14]} 16. Be2 {[%clk 0:02:38]}  b5 {[%clk 0:02:00]} 17. Rad1 {[%clk 0:02:28]}  Rfd8 {[%clk 0:01:54]} 18. Qe3 {[%clk 0:02:26]}  Rac8 {[%clk 0:01:51]} 19. Bf3 {[%clk 0:02:15]}  b4 {[%clk 0:01:51]} 20. Qxd4 {[%clk 0:02:13]}  Rxd4 {[%clk 0:01:52]} 21. Ne2 {[%clk 0:02:12]}  Rd6 {[%clk 0:01:39]} 22. Nf4 {[%clk 0:01:51]}  Rc2 {[%clk 0:01:31]} 23. Nxe6 {[%clk 0:01:50]}  fxe6 {[%clk 0:01:31]} 24. Be2 {[%clk 0:01:47]}  a5 {[%clk 0:01:14]} 25. Bc4 {[%clk 0:01:30]}  Rxa2 {[%clk 0:01:11]} 26. Rfe1 {[%clk 0:01:20]}  Kf7 {[%clk 0:01:11]} 27. Re5 {[%clk 0:00:56]}  Nd7 {[%clk 0:01:01]} 28. Rb5 {[%clk 0:00:54]}  Raxd2 {[%clk 0:00:50]} 29. Rxd2 {[%clk 0:00:53]}  Rxd2 {[%clk 0:00:51]} 30. Rxa5 {[%clk 0:00:50]}  Rxf2 {[%clk 0:00:51]} 31. Rb5 {[%clk 0:00:47]}  Kf6 {[%clk 0:00:48]} 32. Rxb4 {[%clk 0:00:45]}  Ne5 {[%clk 0:00:48]} 33. Kg3 {[%clk 0:00:44]}  Rc2 {[%clk 0:00:47]} 34. Bf1 {[%clk 0:00:39]}  Rc3+ {[%clk 0:00:45]} 35. Kf2 {[%clk 0:00:33]}  Nd3+ {[%clk 0:00:44]} 36. Bxd3 {[%clk 0:00:33]}  Rxd3 {[%clk 0:00:44]} 37. Rf4+ {[%clk 0:00:33]}  Ke5 {[%clk 0:00:35]} 38. Rg4 {[%clk 0:00:32]}  g6 {[%clk 0:00:26]} 39. b4 {[%clk 0:00:32]}  Rb3 {[%clk 0:00:26]} 40. Rc4 {[%clk 0:00:31]}  Kd5 {[%clk 0:00:24]} 41. Rc7 {[%clk 0:00:25]}  Rxb4 {[%clk 0:00:22]} 42. Rxh7 {[%clk 0:00:25]}  Ke5 {[%clk 0:00:23]} 43. Rf7 {[%clk 0:00:24]}  Rf4+ {[%clk 0:00:20]} 44. Rxf4 {[%clk 0:00:24]}  Kxf4 {[%clk 0:00:21]} 45. g3+ {[%clk 0:00:25]}  Ke4 {[%clk 0:00:21]} 46. Ke2 {[%clk 0:00:25]}  e5 {[%clk 0:00:21]} 47. Kf2 {[%clk 0:00:17]}  Kd3 {[%clk 0:00:18]} 48. h4 {[%clk 0:00:18]}  e4 {[%clk 0:00:18]} 49. Ke1 {[%clk 0:00:18]}  Ke3 {[%clk 0:00:13]} 50. g4 {[%clk 0:00:18]}  Kf4 {[%clk 0:00:13]} 51. h5 {[%clk 0:00:19]}  gxh5 {[%clk 0:00:14]} 52. gxh5 {[%clk 0:00:19]}  Kg5 {[%clk 0:00:15]} 53. Ke2 {[%clk 0:00:20]}  Kxh5 {[%clk 0:00:15]} 54. Ke3 {[%clk 0:00:21]}  Kg4 {[%clk 0:00:16]} 55. Kxe4 {[%clk 0:00:22]} 1/2-1/2


[Site "https://www.chess.com"]

[Event "Titled Tuesday Blitz September 27 Early 2022"]
[White "Ciuffoletti, Paolo"]
[Black "Seifert, Henryk"]
[WhiteFideId "807630"]
[BlackFideId "1100963"]
[WhiteElo "2143"]
[BlackElo "2120"]
[Result "1-0"]
[Round "09"]
[TimeControl "180+1"]
[Date "2022.09.27"]
[WhiteClock "0:00:36"]
[BlackClock "0:00:16"]

1. e4 {[%clk 0:03:00]}  e6 {[%clk 0:02:59]} 2. d4 {[%clk 0:03:00]}  d5 {[%clk 0:02:59]} 3. e5 {[%clk 0:03:00]}  c5 {[%clk 0:02:59]} 4. c3 {[%clk 0:03:00]}  Nc6 {[%clk 0:03:00]} 5. Nf3 {[%clk 0:03:01]}  Qb6 {[%clk 0:03:00]} 6. a3 {[%clk 0:03:01]}  Bd7 {[%clk 0:02:59]} 7. b4 {[%clk 0:02:59]}  cxd4 {[%clk 0:02:58]} 8. cxd4 {[%clk 0:02:59]}  Rc8 {[%clk 0:02:59]} 9. Bb2 {[%clk 0:02:57]}  Na5 {[%clk 0:02:57]} 10. Nbd2 {[%clk 0:02:56]}  Nc4 {[%clk 0:02:56]} 11. Bxc4 {[%clk 0:02:51]}  dxc4 {[%clk 0:02:57]} 12. Rc1 {[%clk 0:02:50]}  a5 {[%clk 0:02:37]} 13. O-O {[%clk 0:02:19]}  axb4 {[%clk 0:02:31]} 14. axb4 {[%clk 0:02:03]}  Qxb4 {[%clk 0:02:20]} 15. Bc3 {[%clk 0:01:56]}  Qb5 {[%clk 0:02:18]} 16. Ne4 {[%clk 0:01:28]}  Nh6 {[%clk 0:02:00]} 17. Nfg5 {[%clk 0:00:58]}  Bc6 {[%clk 0:01:52]} 18. Qh5 {[%clk 0:00:51]}  Be7 {[%clk 0:01:24]} 19. Nxe6 {[%clk 0:00:50]}  Bxe4 {[%clk 0:00:48]} 20. Nxg7+ {[%clk 0:00:48]}  Kd8 {[%clk 0:00:36]} 21. Qxh6 {[%clk 0:00:45]}  Bg6 {[%clk 0:00:35]} 22. d5 {[%clk 0:00:42]}  Bd3 {[%clk 0:00:23]} 23. d6 {[%clk 0:00:39]}  Bxd6 {[%clk 0:00:21]} 24. exd6 {[%clk 0:00:37]}  Qd7 {[%clk 0:00:16]} 25. Qf6+ {[%clk 0:00:36]} 1-0


[Site "https://www.chess.com"]